Cogmind - Beta 14 @@@ ROGUE MODE // 2024.10.02 @ 13:44:43 Player: Zane Result: Destroyed by D-53 Grenadier with Mini Grenade Launcher Performance ------------- Evolutions (0) 0 Regions Visited (4) 800 Robots Destroyed (32) 160 Value Destroyed (550) 550 Prototype IDs (25) 500 Alien Tech Used (0) 0 Bonus (350) 350 TOTAL SCORE: 2360 Bonus ------- Follower Combat Kills 50 Aligned with FarCom 300 Cogmind --------- Core Integrity 0/250 Matter 259/300 Energy 123/125 System Corruption 0% Temperature Cool (41) Movement Walking (90) Location -9/Mines Parts ------- > --- POWER (1) -------- Light Ion Engine > --- PROPULSION (2) --- Potential Leg Potential Leg > --- UTILITY (2) ------ Medium Storage Unit Targeting Computer > --- WEAPON (2) ------- Particle Cannon Heavy Battle Rifle > --- INVENTORY (10) --- Ion Engine Light Treads Light Treads Light Treads Aluminum Leg Aluminum Leg Targeting Computer Hardened Light Armor Plating EM Pulse Gun Assault Rifle Peak State ------------ > --- POWER ------------ Ion Engine > --- PROPULSION ------- Potential Leg Potential Leg > --- UTILITY ---------- Medium Storage Unit Targeting Computer > --- WEAPON ----------- Particle Cannon Heavy Battle Rifle > --- INVENTORY -------- Light Ion Engine Light Treads Light Treads Light Treads Aluminum Leg Aluminum Leg Targeting Computer Hardened Light Armor Plating EM Pulse Gun Assault Rifle [Rating: 30] Favorites ----------- Power Ion Engine Engine Ion Engine Propulsion Light Treads Treads Light Treads Leg Aluminum Leg Utility Targeting Computer Device Heat Sink Storage Medium Storage Unit Processor Targeting Computer Weapon Particle Cannon Energy Gun EM Pulse Gun Energy Cannon Particle Cannon Ballistic Gun Heavy Battle Rifle Launcher Grenade Launcher Build | -11 -10 -10 -10 -9 ------- Run | Yrd Mat Min Exi Min Slots Evolved . | . . . . . Power . | . . . . . Propulsion . | . . . . . Utility . | . . . . . Weapon . | . . . . . Parts Attached 26 | 6 9 7 4 . Power 6 | 1 2 2 1 . Engine 6 | 1 2 2 1 . Core . | . . . . . Reactor . | . . . . . Propulsion 8 | 2 1 2 3 . Treads 2 | . . 2 . . Leg 6 | 2 1 . 3 . Wheel . | . . . . . Hover . | . . . . . Flight . | . . . . . Utility 4 | 1 3 . . . Device 1 | . 1 . . . Storage 2 | 1 1 . . . Processor 1 | . 1 . . . Hackware . | . . . . . Protection . | . . . . . Artifact . | . . . . . Weapon 8 | 2 3 3 . . Energy Gun 1 | . 1 . . . Energy Cannon 2 | . 1 1 . . Ballistic Gun 4 | 2 1 1 . . Ballistic Cannon . | . . . . . Launcher 1 | . . 1 . . Special Weapon . | . . . . . Impact Weapon . | . . . . . Slashing Weapon . | . . . . . Piercing Weapon . | . . . . . Special Melee Weapon . | . . . . . Unidentified Prototypes . | . . . . . Parts Lost 5 | . 1 4 . . Power 2 | . 1 1 . . Propulsion 2 | . . 2 . . Utility . | . . . . . Weapon 1 | . . 1 . . Highest Loss Streak 4 | . 1 4 . . To Critical Strikes . | . . . . . Average Slot Usage (%) 96 | . 95 96 100 100 Engine 12 | . 13 10 14 14 Treads 14 | . . 22 21 . Leg 13 | . 28 5 7 28 Storage 14 | . 14 14 14 14 Processor 11 | . 7 14 14 14 Energy Gun 4 | . 13 . . . Energy Cannon 12 | . 4 18 14 14 Ballistic Gun 9 | . 10 6 14 14 Launcher 1 | . . 2 . . Peak Build Rating 30 | 6 9 12 30 30 Average Rating 10 | 4 7 9 16 30 On Entrance 11 | . 6 9 12 30 Naked Turns . | . . . . . Heaviest Build 23 | 11 21 23 23 21 Greatest Support 60 | 20 20 40 60 60 Greatest Overweight (x) 1 | 1 1 1 . . Average Overweight (x) . | . . . . . Largest Inventory Capacity 10 | 8 10 10 10 10 Average Capacity 9 | 7 8 10 10 10 Most Carried 10 | 4 10 10 10 10 Average Carried 8 | 2 7 8 9 10 Final Capacity 10 | 8 10 10 10 10 Final Carried 10 | 3 10 10 10 10 Class Distribution -------------------- 100% | Mutant Dominant Class ---------------- Mutant | -10/Materials Mutant | -10/Mines Mutant | -10/Exiles Mutant | -9/Mines Resources | -11 -10 -10 -10 -9 ----------- Run | Yrd Mat Min Exi Min Matter Collected 553 | 220 208 125 . . Remotely . | . . . . . Salvage Created 676 | . 431 245 . . Parts 51 | . 31 20 . . Haulers Intercepted . | . . . . . Recyclers Shooed . | . . . . . Parts Field Recycled . | . . . . . Retrieved Matter . | . . . . . Parts Self-Destructed . | . . . . . Prevented . | . . . . . Kills | -11 -10 -10 -10 -9 ------- Run | Yrd Mat Min Exi Min Combat Hostiles Destroyed 23 | . 11 12 . . Guns 10 | . 10 . . . Cannons 7 | . . 7 . . AOE 6 | . 1 5 . . Classes Destroyed 6 | . 5 1 . . Worker 3 | . 1 2 . . Tunneler 1 | . . 1 . . Operator 2 | . 2 . . . Watcher 3 | . 3 . . . Swarmer 13 | . 6 7 . . Grunt 9 | . 5 4 . . Best Kill Streak 5 | . 5 4 . . Combat Bots Only 4 | . 4 3 . . Max Kills in Single Turn 3 | . 1 3 . . Gunslinging . | . . . . . Exploded 3 | . 1 3 . . Melee . | . . . . . Uniques/NPCs Destroyed 1 | . . 1 . . YI-UF0 (-10/Mines) Combat | -11 -10 -10 -10 -9 -------- Run | Yrd Mat Min Exi Min Hostile Shots Fired 97 | . 41 54 . 2 Missed 27 | . 16 11 . . Damage Taken 1161 | . 249 798 . 114 Core 256 | . 10 230 . 16 Absorbed by Shields . | . . . . . Core Remaining (%) 100 | 100 . . . . Volleys Fired 65 | . 41 23 . 1 Largest 2 | . 2 2 . 2 Hottest 136 | . 60 136 . 101 Shots Fired 122 | . 77 43 . 2 Gun 88 | . 77 10 . 1 Cannon 29 | . . 28 . 1 Launcher 5 | . . 5 . . Special . | . . . . . Kinetic 46 | . 36 9 . 1 Thermal 29 | . . 28 . 1 Explosive 5 | . . 5 . . Electromagnetic 42 | . 41 1 . . Robot Hit Streak 9 | . 9 8 . 3 Robot Miss Streak 3 | . 3 2 . . Penetration Max . | . . . . . Secondary Targets . | . . . . . Shots Hit Robots 71 | . 47 22 . 2 Core Hits 39 | . 24 15 . . Critical Kills . | . . . . . Critical Parts Destroyed . | . . . . . Critical Strikes . | . . . . . Melee Attacks . | . . . . . Impact . | . . . . . Slashing . | . . . . . Piercing . | . . . . . Sneak Attacks . | . . . . . Combat Hostiles . | . . . . . Follow-up Attacks . | . . . . . Damage Inflicted 1625 | 1 830 747 . 47 Guns 709 | . 648 41 . 20 Cannons 370 | . . 349 . 21 Explosions 501 | . 148 353 . . Melee . | . . . . . Ramming 45 | 1 34 4 . 6 Kinetic 307 | . 246 41 . 20 Thermal 518 | . 148 349 . 21 Explosive 353 | . . 353 . . Electromagnetic 402 | . 402 . . . Impact . | . . . . . Slashing . | . . . . . Piercing . | . . . . . Highest Corruption . | . . . . . Average Corruption . | . . . . . Corruption Purged . | . . . . . Corruption Blocked . | . . . . . Overload Shots . | . . . . . Overflow Damage 50 | . 19 31 . . Projectiles 3 | . . 3 . . Explosions 47 | . 19 28 . . Melee . | . . . . . Knockbacks . | . . . . . Impact . | . . . . . Kinetic . | . . . . . Secondary . | . . . . . Self-Inflicted Damage 20 | . . 20 . . Shots 3 | . . 3 . . Rammed . | . . . . . Targets Rammed 10 | 1 6 2 . 1 Kicked 9 | 1 6 1 . 1 Crushed 1 | . . 1 . . Highest Temperature 276 | . 66 276 . 39 Average Temperature 68 | . 35 79 . 26 Received Heat Transfer 186 | . 84 102 . . Siege Activations . | . . . . . Robots Corrupted 1 | . 1 . . . Combat Hostiles . | . . . . . Parts Fried 7 | . 7 . . . Impact Corruptions . | . . . . . Robots Melted . | . . . . . Combat Hostiles . | . . . . . Parts Melted . | . . . . . Heat Transferred 866 | . 200 629 . 37 Parts Sabotaged . | . . . . . Parts Stolen . | . . . . . Parts Stripped . | . . . . . Power Chain Reactions 2 | . 2 . . . Alert | -11 -10 -10 -10 -9 ------- Run | Yrd Mat Min Exi Min Peak Influence 372 | . 372 262 . . Initial 90 | . . 90 . . Average 134 | . 163 125 . . Maximum Alert Level 1 | . 1 1 . . Low Security (%) 63 | 100 45 73 . 100 Level 1 36 | . 54 26 . . Level 2 . | . . . . . Level 3 . | . . . . . Level 4 . | . . . . . Level 5 . | . . . . . High Security . | . . . . . Max Security . | . . . . . Squads Dispatched 1 | . 1 . . . Investigation . | . . . . . Extermination . | . . . . . Reinforcement 1 | . 1 . . . Assault . | . . . . . Garrison . | . . . . . Intercept . | . . . . . Searches Triggered . | . . . . . Construction Impeded . | . . . . . Haulers Reinforced . | . . . . . Active Scanning Responses . | . . . . . Cargo Convoy Interrupts . | . . . . . Stealth | -11 -10 -10 -10 -9 --------- Run | Yrd Mat Min Exi Min Distress Signals 2 | . 2 . . . Communications Jammed . | . . . . . Distress Signals . | . . . . . Times Spotted 43 | . 23 17 . 3 Peak Tracking Total 5 | . 5 3 . 2 Tactical Retreats 6 | . 3 3 . . Traps | -11 -10 -10 -10 -9 ------- Run | Yrd Mat Min Exi Min Traps Triggered . | . . . . . Indirectly . | . . . . . Trap Hack Attempts . | . . . . . Triggered . | . . . . . Disarmed . | . . . . . Reprogrammed . | . . . . . Reused . | . . . . . Traps Extracted . | . . . . . Installed . | . . . . . Triggered 1 | . 1 . . . Machines | -11 -10 -10 -10 -9 ---------- Run | Yrd Mat Min Exi Min Machines Disabled 1 | . . 1 . . Max in Single Turn 1 | . . 1 . . Machines Repaired . | . . . . . Machines Dismantled . | . . . . . Machines Sabotaged . | . . . . . Overloaded Fab Kills . | . . . . . Hacking | -11 -10 -10 -10 -9 --------- Run | Yrd Mat Min Exi Min Machines Accessed 4 | . 2 . 2 . Terminals 2 | . 2 . . . Fabricators . | . . . . . Repair Stations . | . . . . . Recycling Units . | . . . . . Scanalyzers . | . . . . . Garrison Access . | . . . . . Total Hacks 10 | . 8 . 2 . Successful 5 | . 3 . 2 . Failed 5 | . 5 . . . Catastrophic 1 | . 1 . . . Database Lockouts . | . . . . . Manual 1 | . . . 1 . Terminals 8 | . 8 . . . Fabricators . | . . . . . Repair Stations . | . . . . . Recycling Units . | . . . . . Scanalyzers . | . . . . . Garrison Access . | . . . . . Terminal Hacks 5 | . 3 . 2 . Record 1 | . . . 1 . Prototype ID Bank 1 | . 1 . . . Branch Access Points 1 | . 1 . . . Locate Traps 1 | . 1 . . . Derelict Proto ID Bank 1 | . . . 1 . Fabricator Hacks . | . . . . . Repair Station Hacks . | . . . . . Recycling Unit Hacks . | . . . . . Scanalyzer . | . . . . . Garrison Access Hacks . | . . . . . Unauthorized Hacks . | . . . . . Terminals . | . . . . . Fabricators . | . . . . . Repair Stations . | . . . . . Recycling Units . | . . . . . Scanalyzers . | . . . . . Garrison Access . | . . . . . Data Cores Recovered 1 | . 1 . . . Used . | . . . . . Hacking Detections 2 | . 2 . . . Full Trace Events . | . . . . . Feedback Events . | . . . . . Feedback Blocked . | . . . . . Robot Schematics Acquired . | . . . . . Robots Built . | . . . . . Authchips . | . . . . . Time . | . . . . . Total Robot Build Rating . | . . . . . Part Schematics Acquired . | . . . . . Parts Built . | . . . . . Authchips . | . . . . . Time . | . . . . . Total Part Build Rating . | . . . . . Parts Repaired . | . . . . . Time . | . . . . . Parts Recycled . | . . . . . Recycled Matter . | . . . . . Retrieved Matter . | . . . . . Retrieved Components . | . . . . . Parts Scanalyzed . | . . . . . Part Schematics Acquired . | . . . . . Parts Damaged . | . . . . . Bothacking | -11 -10 -10 -10 -9 ------------ Run | Yrd Mat Min Exi Min Used RIF Installer . | . . . . . Robots Hacked . | . . . . . Non-combat . | . . . . . Combat . | . . . . . Robot Hacks Applied . | . . . . . Relay Couplers Released . | . . . . . Fabnet Peak Effective % . | . . . . . Robots Rewired . | . . . . . Allies Hacked . | . . . . . Hacks Repelled . | . . . . . Allies | -11 -10 -10 -10 -9 -------- Run | Yrd Mat Min Exi Min Total Allies 3 | . . 3 . . Largest Group 3 | . . 3 3 3 Highest-Rated Group 40 | . . 40 40 40 Highest-Rated Ally 16 | . . 16 16 16 Total Orders . | . . . . . Ally Attacks 16 | . . 13 . 3 Total Damage 151 | . . 151 . . Kills 2 | . . 2 . . Allies Corrupted . | . . . . . Allies Melted . | . . . . . Intel | -11 -10 -10 -10 -9 ------- Run | Yrd Mat Min Exi Min Robot Analysis Total . | . . . . . Derelict Logs Recovered 1 | . . 1 . . Drone Launches . | . . . . . Drone Recoveries . | . . . . . Exploration | -11 -10 -10 -10 -9 ------------- Run | Yrd Mat Min Exi Min Turns Passed 2405 | 65 788 1073 440 39 Spaces Moved 1346 | 43 429 544 297 33 Core 12 | 12 . . . . Treads 656 | . . 455 201 . Legs 678 | 31 429 89 96 33 Wheels . | . . . . . Hover . | . . . . . Flight . | . . . . . Fastest Speed 50 | 50 120 120 90 90 Average Speed 147 | 101 140 164 137 90 Slowest Speed 190 | 120 190 190 160 90 Overloaded Moves . | . . . . . Propulsion Burnouts . | . . . . . Robots Hopped . | . . . . . Cave-ins Triggered . | . . . . . Exploration Rate (%) 48 | 3 74 94 62 9 Regions Visited 4 Branch Regions 3 Pre-discovered Areas . | . . . . . Known Exits Taken 1 | . 1 . . . Unknown Exits Taken 3 | 1 . 1 1 . Scrap Searched 1 | . . 1 . . Spaces Dug . | . . . . . Terrain Destroyed 28 | . 7 21 . . Melee . | . . . . . Projectile 3 | . . 3 . . AOE 25 | . 7 18 . . Terrain Rammed . | . . . . . Walls Destroyed . | . . . . . Machines Disabled . | . . . . . Actions | -11 -10 -10 -10 -9 --------- Run | Yrd Mat Min Exi Min Total 1641 | 62 534 676 328 41 Wait 171 | 7 38 95 25 6 Move 1342 | 42 428 543 296 33 Hop . | . . . . . Pick Up 18 | 6 7 4 1 . Fast Attach 7 | 3 3 1 . . Attach 8 | 3 1 4 . . Detach . | . . . . . Swap 11 | . 5 2 4 . Drop 9 | . 5 2 2 . Fire 65 | . 41 23 . 1 Melee . | . . . . . Ram . | . . . . . Kick 9 | 1 6 1 . 1 Crush 1 | . . 1 . . Escape Stasis . | . . . . . Rewire . | . . . . . Trap . | . . . . . Miscellaneous . | . . . . . Route ------- -11/Scrapyard -10/Materials (discovered 3 exits: [*Mat x2] / *Min) -10/Mines (discovered 3 exits: [*Mat x2] / *Exi) -10/Exiles (discovered 2 exits: [*Min x2]) -9/Mines History --------- Turn | Location | Event 8 | -11/Scrapyard | Discovered new exit (range 16) 66 | -11/Scrapyard | Entered Materials 143 | -10/Materials | Discovered new exit (range 4) 305 | -10/Materials | Build established: Mutant 332 | -10/Materials | Discovered new exit (range 12) 458 | -10/Materials | Identified exit to Mines 643 | -10/Materials | Discovered new exit (range 16) 854 | -10/Materials | Entered Mines 887 | -10/Mines | Discovered new exit (range 16) 917 | -10/Mines | Learned Materials interactive machine intel 1048 | -10/Mines | Excavation squad dispatched 1048 | -10/Mines | A large section of the Mines collapsed 1048 | -10/Mines | Core integrity fell below 50% 1054 | -10/Mines | Core integrity fell below 20% 1054 | -10/Mines | Destroyed YI-UF0 1084 | -10/Mines | Lost 4 parts (1p2n1w) 1298 | -10/Mines | Excavation squad dispatched 1432 | -10/Mines | A weapon hastily lodged in a ceiling crevice suddenly fell to the ground 1459 | -10/Mines | Discovered new exit (range 6) 1795 | -10/Mines | Assisted by bots powering up and referring to "LRC-V3" 1921 | -10/Mines | Deemed a non-threat by the Exiles lab entrance 1921 | -10/Mines | Discovered new exit (range 5) 1927 | -10/Mines | Entered Exiles 1927 | -10/Exiles | Accompanied by 3 allies 1953 | -10/Exiles | Discovered new exit (range 14) 1993 | -10/Exiles | Met 8R-AWN 2019 | -10/Exiles | Met EX-HEX 2068 | -10/Exiles | Met EX-BIN 2086 | -10/Exiles | Aligned with FarCom system 2087 | -10/Exiles | Given EX-Vault access code 2126 | -10/Exiles | Opened EX-Vault 2191 | -10/Exiles | Warned to stay clear of 0b10 Research branches 2250 | -10/Exiles | Found Potential Leg 2255 | -10/Exiles | Found Potential Leg 2300 | -10/Exiles | Met EX-DEC 2331 | -10/Exiles | Discovered new exit (range 14) 2367 | -10/Exiles | Left Exiles lab with Potential Leg 2367 | -10/Exiles | Entered Mines 2367 | -9/Mines | Accompanied by 3 allies 2368 | -9/Mines | Assembled infested the area 2373 | -9/Mines | Assisted by a Guerilla fighting off Assembled 2406 | -9/Mines | Destroyed by D-53 Grenadier with Mini Grenade Launcher Last Messages --------------- need to get out of here! I've been tracking a group of Assembled to figure out where they're coming from, and they're closing on this area, come on!" 02397_ C-30 ARC bursts open, deploying its payload. 02397_ D-53 Grenadier unfolds itself. 02400_ K-01 Serf collects debris. 02402_ Kicked K-01 Serf out of the way. 02402_ as-64063 destroyed. 02402_ as-70477 destroyed. 02402_ as-00132 destroyed. 02402_ BG-4DJ(h): "I'll hold them off! Go on ahead or try to find another way!" 02403_ The unstable cave ceiling collapses. 02403_ as-67735 destroyed. 02403_ K-01 Serf destroyed. 02404_ as-87628 destroyed. 02405_ The unstable cave ceiling collapses. 02406_ Mercenary 1a destroyed. Map ----- +----------------------------------------------------+ | ?????????????????????????????????????????????????? | | ?????????????????????????????????????????????????? | | ?????????????????????????????????????????????????? | | ?????????????????????????????????????????????????? | | ?????????????????????????????????????????????????? | | ?????????????????????????????????????????????????? | | ?????????????????????????????????????????????????? | | ?????????????????????????????????????????????????? | | ?????????????????????????????????????????????????? | | ?????????????????????????????????????????????????? | | ?????????????????????????????????????????????????? | | ?????????????????????????????????????????????????? | | ?????????????????????????????????????????????????? | | ?????????????????????????????????????????????????? | | ?????????????????????????????????????????????????? | | ?????????????????????????????????????????????????? | | ???????????????????##????????????????????????????? | | ????????????????####;#???????????????????????????? | | ???????????? ??## ####???????????????????????? | | ???????????? ## ####????????????????????? | | ???????????? !%= ?????????????????????? | | ??????????????! # #?????????????????????? | | ??????????# ### #?????????????????????? | | ??????????% %% dd% #?????????????????????? | | ??????????? % !% ##????????????????????? | | ??????????????????# @ #????????????????????? | | ??????????????????# # g ##????????????????????? | | ???????????????????# h #?????????????????????? | | ???????????????????#g #?????????????????????? | | ???????????????????# #######?????????????????????? | | ???????????????????# #???????????????????????????? | | ????????????????#### #???????????????????????????? | | ????????????????# #???????????????????????????? | | ????######??????# ####???????????????????????????? | | ????# #??????# #??????????????????????????????? | | ????# #??##### #??????????????????????????????? | | ????# #??# #??????????????????????????????? | | ????# #??# #####??????????????????????????????? | | ????# #### #??????????????????????????????????? | | ????# #??????????????????????????????????? | | ????# ######??????????????????????????????????? | | ????######???????????????????????????????????????? | | ?????????????????????????????????????????????????? | | ?????????????????????????????????????????????????? | | ?????????????????????????????????????????????????? | | ?????????????????????????????????????????????????? | | ?????????????????????????????????????????????????? | | ?????????????????????????????????????????????????? | | ?????????????????????????????????????????????????? | | ?????????????????????????????????????????????????? | +----------------------------------------------------+ Best States ------------- Heat Dissipation 35 Energy Generation 10 Energy Capacity 250 Matter Stores 300 Matter Capacity 300 Sight Range 16 Terrain Scan Density 10 Evasion (%) 57 Targeting Accuracy 5 Recoil Reduction 2 Item Schematics ----------------- None Robot Schematics ------------------ None Fabricated ------------ Nothing Alien Tech Used ----------------- None Achievements -------------- None Challenges ------------ None Game ------ Seed ArmorActuatorCompressor Manual? 0 Play Time 00:28:42 Cumulative 7.5 hours Start 2024.10.02 @ 12:51:09 End 2024.10.02 @ 13:44:43 Sessions 1 Manual Loads 0 Difficulty Rogue Special Mode None Game No. 8 Rogue 8 Adventurer 0 Explorer 0 Win Type - Total 0 Types 0/0/0/0/0/0/0/0/0 Lore% 10 Gallery% 14 Achievement% 15 Wizard Run 0 Options --------- Layout 1 ASCII 0 Keyboard 0 Movement Mouse Keybinds 0 Fullscreen 1 Font 24/Smallcaps Map View 50x35 Zoom Use 0% Tactical HUD 1 Map Filters NONE Filters NONE Steam 1 RUN: 4eb92b43-6fa7-48bc-9320-01462a81539f